Cogmind - Beta 17.1 @@@ ROGUE MODE // 2026.09.12 @ 06:50:23 Player: MrFartsburg Result: Destroyed by G-50 Soldier with Heavy Laser Performance ------------- Evolutions (4) 2000 Regions Visited (9) 1800 Robots Destroyed (26) 130 Value Destroyed (749) 749 Prototype IDs (4) 80 Alien Tech Used (0) 0 Bonus (500) 500 TOTAL SCORE: 5259 Bonus ------- Entered DSFs 500 Cogmind --------- Core Integrity 0/850 Matter 237/300 Energy 240/240 System Corruption 6% Temperature Cool (9) Movement Hovering (60) Location -6/Factory Parts ------- > --- POWER (3) -------- Nuclear Core (fused) > --- PROPULSION (4) --- Improved Gravmag System > --- UTILITY (5) ------ Terrain Scan Processor Hacking Suite > --- WEAPON (3) ------- Power Sword > --- INVENTORY (5) ---- Nuclear Core Nuclear Core Small Laser Peak State ------------ > --- POWER ------------ Light Nuclear Core Angular Momentum Engine > --- PROPULSION ------- Improved Treads Improved Treads Medium Treads Medium Treads > --- UTILITY ---------- Gravity Neutralizer IFF Parser Focal Shield EM Disruption Field System Shield > --- WEAPON ----------- Arc Projector Thermic Laser Heavy Particle Cannon > --- INVENTORY -------- Small Laser Heavy Laser Assault Cannon [Rating: 55] Favorites ----------- Power Light Ion Engine Engine Light Ion Engine Power Core Light Nuclear Core Propulsion Wheel Treads Medium Treads Leg Carbon-fiber Leg Wheel Wheel Hover Unit Improved Gravmag System Flight Unit Flight Unit Utility Hacking Suite Device Improved Terrain Scanner Processor Visual Processing Unit Hackware Hacking Suite Protection Light Armor Plating Weapon Makeshift Spear Energy Gun Heavy Laser Energy Cannon Heavy Particle Cannon Ballistic Gun Light Assault Rifle Ballistic Cannon Assault Cannon Special Weapon Mining Laser Slashing Weapon Power Sword Piercing Weapon Makeshift Spear Build | -11 -10 -10 -10 -9 -8 -8 -7 -7 -6 ------- Run | Yrd Mat Min Exi Min Mat Sto Fac DSF Fac Slots Evolved 8 | . . . . . 4 . 2 . 2 Power 2 | . . . . . 1 . . . 1 Propulsion 2 | . . . . . 1 . 1 . . Utility 3 | . . . . . 2 . 1 . . Weapon 1 | . . . . . . . . . 1 Parts Attached 60 | 5 4 3 . . 7 9 1 6 25 Power 10 | 1 . . . . 1 3 . . 5 Engine 7 | 1 . . . . 1 2 . . 3 Core 3 | . . . . . . 1 . . 2 Reactor . | . . . . . . . . . . Propulsion 14 | 2 . . . . 1 3 . 4 4 Treads 4 | . . . . . . . . 4 . Leg 2 | . . . . . . . . . 2 Wheel 3 | 2 . . . . 1 . . . . Hover 1 | . . . . . . . . . 1 Flight 4 | . . . . . . 3 . . 1 Utility 22 | . 2 2 . . 4 3 1 1 9 Device 12 | . 1 1 . . 1 2 1 . 6 Storage . | . . . . . . . . . . Processor 3 | . 1 . . . . 1 . . 1 Hackware 4 | . . . . . 1 . . 1 2 Protection 3 | . . 1 . . 2 . . . . Artifact . | . . . . . . . . . . Weapon 14 | 2 2 1 . . 1 . . 1 7 Energy Gun 6 | 1 . . . . . . . 1 4 Energy Cannon 1 | . . . . . . . . . 1 Ballistic Gun 2 | 1 . . . . 1 . . . . Ballistic Cannon 1 | . . . . . . . . . 1 Launcher . | . . . . . . . . . . Special Weapon 2 | . 2 . . . . . . . . Impact Weapon . | . . . . . . . . . . Slashing Weapon 1 | . . . . . . . . . 1 Piercing Weapon 1 | . . 1 . . . . . . . Special Melee Weapon . | . . . . . . . . . . Unidentified Prototypes 2 | . . . . . 1 . . . 1 Parts Lost 46 | . . 2 . . 3 11 . 4 26 Power 9 | . . . . . 1 3 . 1 4 Propulsion 12 | . . . . . 1 2 . 2 7 Utility 16 | . . 1 . . 1 4 . 1 9 Weapon 9 | . . 1 . . . 2 . . 6 Highest Loss Streak 8 | . . 2 . . 1 4 . 4 8 To Critical Strikes . | . . . . . . . . . . Average Backups 2 | . 1 2 2 2 2 1 1 4 2 Power . | . 1 1 1 1 . . . . . Propulsion . | . . . . . . . . . . Utility . | . . . . . 1 . . . . Weapon 1 | . . 1 1 1 1 . 1 4 2 Tool/Special . | . . . . . . . . . . Unused Backups . | . . . . . . . . . . Power . | . . . . . . . . . . Propulsion . | . . . . . . . . . . Utility . | . . . . . . . . . . Weapon . | . . . . . . . . . . Tool/Special . | . . . . . . . . . . Average Slot Usage (%) 78 | . 97 97 100 100 81 70 52 46 67 Engine 7 | . 14 14 14 14 12 6 . . 2 Core 1 | . . . . . . . 7 3 3 Treads 7 | . . . . . . . . 3 20 Wheel 12 | . 28 28 28 28 16 6 . . . Flight 1 | . . . . . . 5 15 6 . Device 10 | . 12 8 14 14 15 12 5 3 9 Processor 4 | . 12 8 . . . . 7 7 3 Hackware 5 | . . . . . 8 9 7 11 7 Protection 6 | . . 10 14 14 10 13 7 7 . Energy Gun 2 | . 2 . . . . 1 . 2 6 Ballistic Gun 6 | . 14 12 14 14 9 5 . . . Ballistic Cannon 1 | . . . . . . . . . 4 Piercing Weapon 5 | . . 11 14 14 9 9 . . . Peak Build Rating 55 | 5 10 12 12 13 35 29 15 22 55 Average Rating 23 | 3 9 10 12 12 30 24 14 15 35 On Entrance 12 | . 5 9 12 12 13 26 11 15 22 Avg Prop Armor Cover (%) 7 | . . . . . . . . . 7 Naked Turns . | . . . . . . . . . . Heaviest Build 38 | 5 7 10 10 10 18 21 11 15 38 Greatest Support 114 | 20 20 20 20 20 38 28 8 102 114 Greatest Overweight (x) 4 | . . . . . . 4 1 1 3 Average Overweight (x) . | . . . . . . . . . . Largest Inventory Capacity 5 | 5 5 5 5 5 5 5 5 5 5 Average Capacity 5 | 5 5 5 5 5 5 5 5 5 5 Most Carried 5 | 1 2 5 5 5 5 2 2 5 4 Average Carried 2 | . 1 4 5 4 3 1 1 4 2 Final Capacity 5 | 5 5 5 5 5 5 5 5 5 5 Final Carried 5 | 1 2 5 5 5 2 1 2 5 3 Class Distribution -------------------- 73% | Mutant 12% | Hacker-Mutant 5% | Hacker-Tank 5% | Tank 3% | Hacker-Skirmisher Dominant Class ---------------- Mutant | -10/Materials Mutant | -10/Mines Mutant | -10/Exiles Mutant | -9/Mines Mutant | -8/Materials Mutant | -8/Storage Mutant | -7/Factory Hacker-Mutant | -7/DSF Mutant | -6/Factory Resources | -11 -10 -10 -10 -9 -8 -8 -7 -7 -6 ----------- Run | Yrd Mat Min Exi Min Mat Sto Fac DSF Fac Matter Collected 787 | 172 . 143 . . 59 91 . 9 313 Remotely . | . . . . . . . . . . Salvage Created 824 | . . 114 . . 111 279 . . 320 Parts 60 | . . 13 . . 4 23 . . 20 Haulers Intercepted . | . . . . . . . . . . Recyclers Shooed . | . . . . . . . . . . Parts Field Recycled . | . . . . . . . . . . Retrieved Matter . | . . . . . . . . . . Parts Self-Destructed . | . . . . . . . . . . Prevented . | . . . . . . . . . . Parts Restored . | . . . . . . . . . . Kills | -11 -10 -10 -10 -9 -8 -8 -7 -7 -6 ------- Run | Yrd Mat Min Exi Min Mat Sto Fac DSF Fac Combat Hostiles Destroyed 23 | . . 3 . . 2 10 . . 8 Melee 12 | . . 3 . . 2 6 . . 1 Guns 6 | . . . . . . 4 . . 2 Cannons 4 | . . . . . . . . . 4 AOE 1 | . . . . . . . . . 1 Classes Destroyed 8 | . . 4 . . 1 . . . 3 Worker 1 | . . 1 . . . . . . . Builder 1 | . . 1 . . . . . . . Tunneler 1 | . . 1 . . . . . . . Swarmer 13 | . . 3 . . . 7 . . 3 Grunt 2 | . . . . . . . . . 2 Sentry 6 | . . . . . 2 3 . . 1 Hunter 1 | . . . . . . . . . 1 Programmer 1 | . . . . . . . . . 1 Best Kill Streak 6 | . . 3 . . 2 6 . . 3 Combat Bots Only 6 | . . 3 . . 2 6 . . 3 Max Kills in Single Turn 1 | . . 1 . . 1 1 . . 1 Gunslinging . | . . . . . . . . . . Exploded 1 | . . . . . . . . . 1 Melee 1 | . . 1 . . 1 1 . . 1 Uniques/NPCs Destroyed . | . . . . . . . . . . Combat | -11 -10 -10 -10 -9 -8 -8 -7 -7 -6 -------- Run | Yrd Mat Min Exi Min Mat Sto Fac DSF Fac Hostile Shots Fired 417 | . . 46 . 2 30 132 . 6 201 Missed 101 | . . 10 . 2 9 25 . 1 54 Hits 316 | . . 36 . . 21 107 . 5 147 Projectile 316 | . . 36 . . 21 107 . 5 147 Critical Strikes 11 | . . . . . . 2 . 3 6 Actively Blocked 1 | . . . . . . . . 1 . Damage Taken 4629 | . 1 248 . . 321 1073 . 251 2735 Core 1272 | . . 78 . . 14 212 . 104 864 Absorbed by Shields 51 | . 2 49 . . . . . . . Redirected to Shielding 51 | . . . . . . 40 . 9 2 Ignored by Resistances 194 | . . . . . . . . . 194 Core Remaining (%) 77 | 100 . . . 68 . 58 . 85 . Volleys Fired 40 | . . . . . 4 17 . . 19 Largest 3 | . . . . . 1 1 . . 3 Hottest 215 | . . . . . 20 40 . . 215 Shots Fired 69 | . . . . . 4 17 . . 48 Gun 40 | . . . . . 4 17 . . 19 Cannon 29 | . . . . . . . . . 29 Launcher . | . . . . . . . . . . Special . | . . . . . . . . . . Kinetic 28 | . . . . . 4 7 . . 17 Thermal 38 | . . . . . . 10 . . 28 Explosive . | . . . . . . . . . . Electromagnetic 3 | . . . . . . . . . 3 Robot Hit Streak 5 | . . . . . 1 3 . . 5 Robot Miss Streak 4 | . . . . . 2 4 . . 4 Penetration Max . | . . . . . . . . . . Secondary Targets . | . . . . . . . . . . Shots Hit Robots 75 | . . 12 . . 6 23 . . 34 Core Hits 31 | . . 3 . . 2 10 . . 16 Critical Kills . | . . . . . . . . . . Critical Parts Destroyed . | . . . . . . . . . . Critical Strikes 4 | . . . . . 1 . . . 3 Sever 3 | . . . . . . . . . 3 Impale 1 | . . . . . 1 . . . . Melee Attacks 59 | . . 17 . . 7 23 . . 12 Impact . | . . . . . . . . . . Slashing 12 | . . . . . . . . . 12 Piercing 47 | . . 17 . . 7 23 . . . Sneak Attacks 4 | . . 4 . . . . . . . Combat Hostiles . | . . . . . . . . . . Follow-up Attacks . | . . . . . . . . . . Damage Inflicted 2306 | . 6 490 . . 159 527 . . 1124 Guns 275 | . . . . . 9 102 . . 164 Cannons 342 | . . . . . . . . . 342 Explosions 223 | . . . . . . . . . 223 Melee 1460 | . . 490 . . 150 425 . . 395 Ramming 6 | . 6 . . . . . . . . Kinetic 180 | . . . . . 9 47 . . 124 Thermal 424 | . . . . . . 55 . . 369 Explosive 223 | . . . . . . . . . 223 Electromagnetic 13 | . . . . . . . . . 13 Impact . | . . . . . . . . . . Slashing 395 | . . . . . . . . . 395 Piercing 1065 | . . 490 . . 150 425 . . . Highest Corruption 6 | . . . . . . . . . 6 Average Corruption 3 | . . . . . . . . . 3 Corruption Purged . | . . . . . . . . . . Corruption Blocked . | . . . . . . . . . . Effects 16 | . . . . . . . . . 16 Message Errors 4 | . . . . . . . . . 4 Matter Fused 5 | . . . . . . . . . 5 Heat Flow Errors 1 | . . . . . . . . . 1 Energy Discharges 2 | . . . . . . . . . 2 Parts Rejected 1 | . . . . . . . . . 1 Parts Fused 1 | . . . . . . . . . 1 Data Loss (minor) 1 | . . . . . . . . . 1 Misfires 1 | . . . . . . . . . 1 Overload Shots . | . . . . . . . . . . Overflow Damage 200 | . . 137 . . . 6 . . 57 Projectiles 3 | . . . . . . . . . 3 Explosions 54 | . . . . . . . . . 54 Melee 143 | . . 137 . . . 6 . . . Knockbacks 1 | . . . . . . . . . 1 Impact . | . . . . . . . . . . Kinetic 1 | . . . . . . . . . 1 Secondary . | . . . . . . . . . . Self-Inflicted Damage 156 | . 3 . . . . . . . 153 Shots 2 | . . . . . . . . . 2 Rammed 2 | . 2 . . . . . . . . Targets Rammed 2 | . 2 . . . . . . . . Kicked . | . . . . . . . . . . Crushed . | . . . . . . . . . . Highest Temperature 299 | . . . . . 2 . . . 299 Average Temperature 78 | . . . . . 1 . . . 81 Received Heat Transfer 1310 | . . 8 . . 144 108 . . 1050 Effects 3 | . . . . . . . . . 3 Energy Bleed 1 | . . . . . . . . . 1 Interference 2 | . . . . . . . . . 2 Siege Activations . | . . . . . . . . . . Martial Activations . | . . . . . . . . . . Shielding Activations . | . . . . . . . . . . Robots Disrupted . | . . . . . . . . . . Combat Hostiles . | . . . . . . . . . . Robots Corrupted . | . . . . . . . . . . Combat Hostiles . | . . . . . . . . . . Parts Fried . | . . . . . . . . . . Impact Corruptions . | . . . . . . . . . . Robots Melted . | . . . . . . . . . . Combat Hostiles . | . . . . . . . . . . Parts Melted 1 | . . . . . . 1 . . . Heat Transferred 744 | . . . . . . 125 . . 619 Parts Sabotaged . | . . . . . . . . . . Parts Stolen . | . . . . . . . . . . Parts Stripped . | . . . . . . . . . . Power Chain Reactions . | . . . . . . . . . . Alert | -11 -10 -10 -10 -9 -8 -8 -7 -7 -6 ------- Run | Yrd Mat Min Exi Min Mat Sto Fac DSF Fac Maximum Alert Level . | . . . . . . . . . . Low Security (%) 100 | 100 100 100 . 100 100 100 100 100 100 Level 1 . | . . . . . . . . . . Level 2 . | . . . . . . . . . . Level 3 . | . . . . . . . . . . Level 4 . | . . . . . . . . . . Level 5 . | . . . . . . . . . . High Security . | . . . . . . . . . . Max Security . | . . . . . . . . . . Peak Influence 140 | . 40 60 . 5 60 140 36 30 93 Initial 36 | . . 11 . . . . 36 . 15 Average 21 | . 16 10 . . 14 66 13 10 21 Influence Increases 952 | . 60 115 . 5 60 280 . 30 402 Destroy 0b10 Robot/C 460 | . . 60 . . 40 200 . . 160 Destroy 0b10 Robot/NC 15 | . . 15 . . . . . . . Destroy Leader 120 | . . 10 . . 20 50 . . 40 Successful Hack 15 | . . . . 5 . . . . 10 Disable Machine 75 | . 45 . . . . . . . 30 Destroy Structure 27 | . . . . . . . . . 27 Partial Spotted 30 | . 15 . . . . 15 . . . Lose Combat Pursuer 210 | . . 30 . . . 15 . 30 135 Influence Decreases 875 | . 30 145 . 5 60 200 80 . 355 Entered New Map 78 | . . 19 . . . . 44 . 15 Time Decay 602 | . 30 125 . 5 50 100 36 . 256 Lost Part 195 | . . 1 . . 10 100 . . 84 Squads Dispatched 11 | . 1 . . . 1 2 . . 7 Investigation 3 | . . . . . . . . . 3 Extermination 1 | . . . . . . . . . 1 Reinforcement 7 | . 1 . . . 1 2 . . 3 Assault . | . . . . . . . . . . Garrison . | . . . . . . . . . . Intercept . | . . . . . . . . . . Searches Triggered . | . . . . . . . . . . Construction Impeded . | . . . . . . . . . . Haulers Reinforced . | . . . . . . . . . . Active Scanning Responses . | . . . . . . . . . . Cargo Convoy Interrupts . | . . . . . . . . . . Stealth | -11 -10 -10 -10 -9 -8 -8 -7 -7 -6 --------- Run | Yrd Mat Min Exi Min Mat Sto Fac DSF Fac Distress Signals 2 | . . . . . 1 . . . 1 Communications Jammed . | . . . . . . . . . . Distress Signals . | . . . . . . . . . . Times Spotted 66 | . 2 5 . 2 12 16 . 4 25 Peak Tracking Total 8 | . 2 3 . 2 7 6 . 1 8 Tactical Retreats 8 | . . 1 . . . 1 . 2 4 Traps | -11 -10 -10 -10 -9 -8 -8 -7 -7 -6 ------- Run | Yrd Mat Min Exi Min Mat Sto Fac DSF Fac Traps Triggered 3 | . . . . . . . . . 3 Indirectly . | . . . . . . . . . . Trap Hack Attempts . | . . . . . . . . . . Triggered . | . . . . . . . . . . Disarmed . | . . . . . . . . . . Reprogrammed . | . . . . . . . . . . Reused . | . . . . . . . . . . Traps Extracted . | . . . . . . . . . . Installed . | . . . . . . . . . . Triggered . | . . . . . . . . . . Most Traps Carried 3 | . . 3 3 3 2 . . . . Machines | -11 -10 -10 -10 -9 -8 -8 -7 -7 -6 ---------- Run | Yrd Mat Min Exi Min Mat Sto Fac DSF Fac Machines Disabled 5 | . 3 . . . . . . . 2 Max in Single Turn 2 | . 1 . . . . . . . 2 Machines Repaired . | . . . . . . . . . . Machines Dismantled 3 | . 3 . . . . . . . . Machines Sabotaged . | . . . . . . . . . . Overloaded Fab Kills . | . . . . . . . . . . Hacking | -11 -10 -10 -10 -9 -8 -8 -7 -7 -6 --------- Run | Yrd Mat Min Exi Min Mat Sto Fac DSF Fac Machines Accessed 8 | . 1 . . 1 1 2 1 . 2 Terminals 7 | . . . . 1 1 2 1 . 2 Fabricators . | . . . . . . . . . . Repair Stations . | . . . . . . . . . . Recycling Units 1 | . 1 . . . . . . . . Scanalyzers . | . . . . . . . . . . Garrison Access . | . . . . . . . . . . Total Hacks 18 | . 1 . . 2 3 6 1 . 5 Successful 12 | . . . . 1 3 4 1 . 3 Failed 6 | . 1 . . 1 . 2 . . 2 Catastrophic . | . . . . . . . . . . Database Lockouts . | . . . . . . . . . . Manual . | . . . . . . . . . . Terminals 17 | . . . . 2 3 6 1 . 5 Fabricators . | . . . . . . . . . . Repair Stations . | . . . . . . . . . . Recycling Units 1 | . 1 . . . . . . . . Scanalyzers . | . . . . . . . . . . Garrison Access . | . . . . . . . . . . Terminal Hacks 12 | . . . . 1 3 4 1 . 3 Record 4 | . . . . . 1 2 . . 1 Prototype ID Bank 1 | . . . . . 1 . . . . Open Door 1 | . . . . . . 1 . . . Open DSF 2 | . . . . . . . 1 . 1 Alert Level 1 | . . . . . . . . . 1 Locate Traps 1 | . . . . . 1 . . . . Maintenance Status 1 | . . . . . . 1 . . . Zone Layout 1 | . . . . 1 . . . . . Fabricator Hacks . | . . . . . . . . . . Repair Station Hacks . | . . . . . . . . . . Recycling Unit Hacks . | . . . . . . . . . . Scanalyzer . | . . . . . . . . . . Garrison Access Hacks . | . . . . . . . . . . Unauthorized Hacks . | . . . . . . . . . . Terminals . | . . . . . . . . . . Fabricators . | . . . . . . . . . . Repair Stations . | . . . . . . . . . . Recycling Units . | . . . . . . . . . . Scanalyzers . | . . . . . . . . . . Garrison Access . | . . . . . . . . . . Data Cores Recovered . | . . . . . . . . . . Used . | . . . . . . . . . . Hacking Detections 4 | . . . . 1 . 2 . . 1 Full Trace Events 1 | . . . . . . . . . 1 Feedback Events . | . . . . . . . . . . Feedback Blocked . | . . . . . . . . . . Robot Schematics Acquired . | . . . . . . . . . . Robots Built . | . . . . . . . . . . Authchips . | . . . . . . . . . . Time . | . . . . . . . . . . Total Robot Build Rating . | . . . . . . . . . . Part Schematics Acquired . | . . . . . . . . . . Parts Built . | . . . . . . . . . . Authchips . | . . . . . . . . . . Time . | . . . . . . . . . . Total Part Build Rating . | . . . . . . . . . . Part Studies Acquired . | . . . . . . . . . . Parts Repaired . | . . . . . . . . . . Time . | . . . . . . . . . . Parts Recycled . | . . . . . . . . . . Recycled Matter . | . . . . . . . . . . Retrieved Matter . | . . . . . . . . . . Retrieved Components . | . . . . . . . . . . Parts Scanalyzed . | . . . . . . . . . . Part Schematics Acquired . | . . . . . . . . . . Parts Damaged . | . . . . . . . . . . Bothacking | -11 -10 -10 -10 -9 -8 -8 -7 -7 -6 ------------ Run | Yrd Mat Min Exi Min Mat Sto Fac DSF Fac Used RIF Installer . | . . . . . . . . . . Robots Hacked . | . . . . . . . . . . Non-combat . | . . . . . . . . . . Combat . | . . . . . . . . . . Robot Hacks Applied . | . . . . . . . . . . Relay Couplers Released . | . . . . . . . . . . Fabnet Peak Effective % . | . . . . . . . . . . Robots Rewired . | . . . . . . . . . . Allies Hacked . | . . . . . . . . . . Hacks Repelled . | . . . . . . . . . . Allies | -11 -10 -10 -10 -9 -8 -8 -7 -7 -6 -------- Run | Yrd Mat Min Exi Min Mat Sto Fac DSF Fac Total Allies 2 | . . 2 . . . . . . . Largest Group 2 | . . 2 2 . . . . . . Highest-Rated Group 43 | . . 43 43 . . . . . . Highest-Rated Ally 31 | . . 31 31 . . . . . . Total Orders . | . . . . . . . . . . Ally Attacks . | . . . . . . . . . . Total Damage . | . . . . . . . . . . Kills . | . . . . . . . . . . Allies Corrupted . | . . . . . . . . . . Allies Melted . | . . . . . . . . . . Intel | -11 -10 -10 -10 -9 -8 -8 -7 -7 -6 ------- Run | Yrd Mat Min Exi Min Mat Sto Fac DSF Fac Active Infowar (turns) 1850 | . . 200 265 133 216 155 118 130 633 Optics 842 | . . . . . . 6 118 130 588 Sensors 159 | . . . . . 159 . . . . IFF 45 | . . . . . . . . . 45 Terrain 963 | . . 200 265 133 216 149 . . . ECM 3 | . . . . . . . 1 2 . Robot Analysis Total . | . . . . . . . . . . Derelict Logs Recovered 4 | . . 2 . 2 . . . . . Drone Launches . | . . . . . . . . . . Drone Recoveries . | . . . . . . . . . . Exploration | -11 -10 -10 -10 -9 -8 -8 -7 -7 -6 ------------- Run | Yrd Mat Min Exi Min Mat Sto Fac DSF Fac Turns Passed 2844 | 39 105 491 265 133 216 307 118 130 1040 Spaces Moved 2342 | 39 87 530 271 165 199 248 111 147 545 Core 138 | 1 . . . . . 2 . 92 43 Treads 428 | . . . . . . . . 11 417 Legs 29 | . . . . . . . . . 29 Wheels 1439 | 38 87 530 271 165 199 149 . . . Hover 12 | . . . . . . . . . 12 Flight 296 | . . . . . . 97 111 44 44 Fastest Speed 34 | 50 80 80 80 80 80 34 37 40 40 Average Speed 95 | 79 80 80 80 80 88 84 101 77 139 Slowest Speed 280 | 80 80 80 80 80 100 280 117 160 200 Overloaded Moves . | . . . . . . . . . . Propulsion Burnouts . | . . . . . . . . . . Robots Hopped . | . . . . . . . . . . Potential Cave-ins . | . . . . . . . . . . Cave-ins Triggered . | . . . . . . . . . . Exploration Rate (%) 35 | 3 23 85 54 32 23 40 3 84 12 Regions Visited 9 Branch Regions 4 Pre-discovered Areas 3 | . . 2 . 1 . . . . . Known Exits Taken 1 | . . . . . . . 1 . . Unknown Exits Taken 7 | 1 1 1 1 1 1 1 . . . Scrap Searched 1 | . . 1 . . . . . . . Spaces Dug . | . . . . . . . . . . Terrain Destroyed 30 | . . . . . . . . . 30 Melee . | . . . . . . . . . . Projectile 1 | . . . . . . . . . 1 AOE 29 | . . . . . . . . . 29 Terrain Rammed . | . . . . . . . . . . Walls Destroyed . | . . . . . . . . . . Machines Disabled . | . . . . . . . . . . Actions | -11 -10 -10 -10 -9 -8 -8 -7 -7 -6 --------- Run | Yrd Mat Min Exi Min Mat Sto Fac DSF Fac Total 2769 | 44 103 579 318 166 227 301 116 160 755 Wait 219 | . . 23 44 . 4 2 2 2 142 Move 2333 | 38 86 529 270 164 198 247 110 146 545 Hop . | . . . . . . . . . . Pick Up 17 | 1 . 4 . 1 2 1 1 2 5 Fast Attach 51 | 5 4 2 . . 4 7 1 8 20 Attach 16 | . . 2 . . 3 3 1 . 7 Detach 6 | . 1 1 . . . 1 1 1 1 Swap 3 | . . . . . . . . . 3 Drop 9 | . 1 1 . 1 5 . . . 1 Fire 40 | . . . . . 4 17 . . 19 Melee 59 | . . 17 . . 7 23 . . 12 Ram 2 | . 2 . . . . . . . . Kick . | . . . . . . . . . . Crush . | . . . . . . . . . . Escape Stasis . | . . . . . . . . . . Rewire 5 | . . . 4 . . . . 1 . Trap . | . . . . . . . . . . Miscellaneous 9 | . 9 . . . . . . . . Route ------- -11/Scrapyard -10/Materials -10/Mines -10/Exiles (discovered 2 exits: *Min x2) -9/Mines -8/Materials -8/Storage -7/Factory -7/DSF -6/Factory History --------- Turn | Location | Event 2 | -11/Scrapyard | Met Revision 17 12 | -11/Scrapyard | Discovered new exit (range 14) 40 | -11/Scrapyard | Entered Materials 41 | -10/Materials | Met a group of wandering Federalists 133 | -10/Materials | Discovered new exit (range 16) 145 | -10/Materials | Entered Mines 212 | -10/Mines | Learned location of Zion (-7) 219 | -10/Mines | A weapon hastily lodged in a ceiling crevice suddenly fell to the ground 295 | -10/Mines | Found a hidden stash of uninstalled traps 310 | -10/Mines | Build established: Mutant 603 | -10/Mines | Deemed a non-threat by the Exiles lab entrance 604 | -10/Mines | Discovered new exit (range 5) 636 | -10/Mines | Entered Exiles 636 | -10/Exiles | Accompanied by 2 allies 654 | -10/Exiles | Discovered new exit (range 15) 666 | -10/Exiles | Led the pair of lost Derelicts to a safe place 687 | -10/Exiles | Met 8R-AWN 712 | -10/Exiles | Met EX-HEX 828 | -10/Exiles | Met EX-DEC 888 | -10/Exiles | Discovered new exit (range 12) 901 | -10/Exiles | Entered Mines 953 | -9/Mines | Learned Materials interactive machine intel 964 | -9/Mines | Found a damaged Exp. Sensor Array with a note attached 978 | -9/Mines | Found Prototype Device 990 | -9/Mines | Discovered new exit (range 11) 1034 | -9/Mines | Entered Materials 1034 | -8/Materials | Evolved 4 slots: Power x1, Propulsion x1, Utility x2 1035 | -8/Materials | Loaded intel: 19 interactive machine locations 1035 | -8/Materials | Identified Exp. Sensor Array 1247 | -8/Materials | Discovered new exit (range 3) 1250 | -8/Materials | Entered Storage 1494 | -8/Storage | Lost 4 parts (2p1n1w) 1531 | -8/Storage | Discovered new exit (range 15) 1557 | -8/Storage | Entered Factory 1557 | -7/Factory | Evolved 2 slots: Propulsion x1, Utility x1 1586 | -7/Factory | Lost 4 parts (1n2u1w) 1675 | -7/Factory | Identified exit to DSF 1675 | -7/Factory | Entered DSF 1697 | -7/DSF | Discovered new exit (range 17) 1739 | -7/DSF | Additional patrols routed to DSF 1762 | -7/DSF | Lost 4 parts (1p2n1u) 1805 | -7/DSF | Entered Factory 1805 | -6/Factory | Evolved 2 slots: Power x1, Weapon x1 2149 | -6/Factory | Build established: Hacker-Mutant 2510 | -6/Factory | Lost 4 parts (1p1n1u1w) 2603 | -6/Factory | Lost 5 parts (1p1n2u1w) 2768 | -6/Factory | Lost 8 parts (1p3n2u2w) 2781 | -6/Factory | Core integrity fell below 50% 2790 | -6/Factory | Build established: Mutant 2809 | -6/Factory | Lost 5 parts (1p1n2u1w) 2815 | -6/Factory | Core integrity fell below 20% 2845 | -6/Factory | Destroyed by G-50 Soldier with Heavy Laser Last Messages --------------- Acquired Imp. Gravmag System. ALERT: Security rotation in progress. System corrupted: Energy discharge (-24). Acquired Nuclear Pulse Thruster. Slug penetrates K-01 Serf. K-01 Serf destroyed. R-10 Processor collects Med. Matter Pod. K-01 Serf collects debris. Penetrated by Slug. K-01 Serf destroyed. Acquired Nuclear Core. Acquired Hacking Suite. Penetrated by Slug. Slug penetrates Wall. Penetrated by Slug. Acquired Nuclear Core. System corrupted: Nuclear Core fused. Acquired Nuclear Core. Nuclear Pulse Thruster destroyed. Penetrated by Slug. Map ----- +----------------------------------------------------+ | | | | | | | | | | | | | | | | | | | | | | | | | | | | | | | | | | | | | | | ??????????????##################?????????????????? | | ??????????????# #?????????????????? | | ??????????????# #?????????????????? | | ??????????????# * #?????????????????? | | ###???????????# #?????????????????? | | #???????????# #?????????????????? | | !#???????????# @ #?????????????????? | | #???????????# [ #?????????????????? | | #???????????# #?????????????????? | | #???????????#! ] gx #?????????????????? | | !#???????????#########x#############????????????? | | #????????????????# gg ???????????? | | #????????????????# g ???????????? | | #????????????????# g %= ???????????? | | ###???############## * ???????????? | | ??????# # ???????????? | | ??????# """ # ???????????? | | ??????# R" # ???????????? | | ??????# """ # ##########????????????? | | ??????# # #?????????????????????? | | ??????# # #?????????????????????? | | ??????# # #?????????????????????? | | ??????# # #?????????????????????? | | ??????# # #?????????????????????? | | ??????# + #?????????????????????? | | ??????# # #?????????????????????? | | ??????# # #?????????????????????? | | ??????############## #?????????????????????? | | ???????????????????# #?????????????????????? | | ???????????????????# #?????????????????????? | | ???????????????????# #?????????????????????? | +----------------------------------------------------+ Best States ------------- Heat Dissipation 51 Energy Generation 31 Energy Capacity 360 Matter Stores 300 Matter Capacity 300 Sight Range 18 Robot Scan Range 20 Terrain Scan Range 16 Terrain Scan Density 85 Additional Mass Support 12 Armor Coverage 225 Resistance: KI 20 Resistance: TH 20 Core Shielding 20 Evasion (%) 63 Recoil Reduction 4 Energy Filtering 30 Offensive Hacking 10 Defensive Hacking 10 Item Schematics ----------------- None Robot Schematics ------------------ None Fabricated ------------ Nothing Repaired ---------- Nothing Studied --------- None Alien Tech Used ----------------- None Achievements -------------- None Challenges ------------ None Game ------ Seed MissileSmartbombDrive Manual? 0 Play Time 00:57:14 Cumulative 39.5 hours Start 2026.09.10 @ 17:42:35 End 2026.09.12 @ 06:50:23 Sessions 3 Manual Loads 0 Difficulty Rogue Special Mode None Game No. 76 Rogue 76 Adventurer 0 Explorer 0 Win Type - Total 0 Types 0/0/0/0/0/0/0/0/0/0 Lore% 13 Gallery% 25 Achievement% 17 Wizard Run 0 Options --------- Layout 1 ASCII 0 Keyboard 0 Movement Numpad Keybinds 0 Fullscreen 1 Font 32/SmallcapsGlow Map View 50x35 Zoom Use 0% Tactical HUD 0 Map Filters NONE Filters NONE Steam 1 RUN: e7d2d47c-6b79-4914-9c4b-644c2a8a04d8